[Event "*** Titled Tuesday Blitz"]
[Site "Chess.com"]
[Date "2021.03.16"]
[Round "9"]
[White "RamyresCoelho"]
[Black "dosto07"]
[Result "0-1"]
[WhiteElo "2103"]
[BlackElo "2356"]
[TimeControl "180+1"]
[EndTime "11:46:33 PDT"]
[Termination "dosto07 won by checkmate"]

1. e4 {[%clk 0:02:57.5]} 1... e5 {[%clk 0:02:58.9]} 2. Nf3 {[%clk 0:02:53.8]}
2... Nc6 {[%clk 0:02:59.2]} 3. d4 {[%clk 0:02:52.6]} 3... exd4 {[%clk
0:02:58.1]} 4. Bc4 {[%clk 0:02:52.1]} 4... Bc5 {[%clk 0:02:56.7]} 5. O-O {[%clk
0:02:50.1]} 5... d6 {[%clk 0:02:57]} 6. c3 {[%clk 0:02:44.6]} 6... Nf6 {[%clk
0:02:56.2]} 7. cxd4 {[%clk 0:02:43.4]} 7... Bb6 {[%clk 0:02:56.7]} 8. Nc3 {[%clk
0:02:38.4]} 8... O-O {[%clk 0:02:56.6]} 9. Bg5 {[%clk 0:02:27]} 9... h6 {[%clk
0:02:55.7]} 10. Bxf6 {[%clk 0:02:24.1]} 10... Qxf6 {[%clk 0:02:54.3]} 11. Nd5
{[%clk 0:02:24.5]} 11... Qg6 {[%clk 0:02:52.5]} 12. Qd3 {[%clk 0:02:01.2]} 12...
Re8 {[%clk 0:02:39.2]} 13. Nxb6 {[%clk 0:01:52.8]} 13... axb6 {[%clk 0:02:37.7]}
14. Nd2 {[%clk 0:01:45.3]} 14... Na5 {[%clk 0:02:19.9]} 15. f4 {[%clk
0:01:41.9]} 15... Nxc4 {[%clk 0:02:07.9]} 16. Qxc4 {[%clk 0:01:27.2]} 16... c6
{[%clk 0:01:46.2]} 17. f5 {[%clk 0:01:06.8]} 17... Qg5 {[%clk 0:01:45.8]} 18.
Qd3 {[%clk 0:01:02.2]} 18... b5 {[%clk 0:01:34.5]} 19. Nf3 {[%clk 0:01:00.7]}
19... Qf6 {[%clk 0:01:34]} 20. a3 {[%clk 0:00:53.8]} 20... d5 {[%clk 0:01:33]}
21. Ne5 {[%clk 0:00:48.1]} 21... dxe4 {[%clk 0:01:15.9]} 22. Qxe4 {[%clk
0:00:49]} 22... Qd6 {[%clk 0:01:14.6]} 23. f6 {[%clk 0:00:45.8]} 23... Qd5
{[%clk 0:01:05.2]} 24. Qxd5 {[%clk 0:00:37.6]} 24... cxd5 {[%clk 0:01:04.1]} 25.
fxg7 {[%clk 0:00:37.7]} 25... Be6 {[%clk 0:01:02]} 26. Rac1 {[%clk 0:00:33.1]}
26... Rac8 {[%clk 0:01:01.3]} 27. h3 {[%clk 0:00:27.1]} 27... Kxg7 {[%clk
0:01:00]} 28. Nd3 {[%clk 0:00:24.2]} 28... b6 {[%clk 0:00:56.2]} 29. Ne5 {[%clk
0:00:22.4]} 29... Re7 {[%clk 0:00:30.8]} 30. Rxc8 {[%clk 0:00:19.5]} 30... Bxc8
{[%clk 0:00:30.8]} 31. Rf2 {[%clk 0:00:17.8]} 31... Rc7 {[%clk 0:00:29.4]} 32.
Kh2 {[%clk 0:00:16.5]} 32... Be6 {[%clk 0:00:29.5]} 33. Kg3 {[%clk 0:00:13.4]}
33... f6 {[%clk 0:00:28.1]} 34. Nf3 {[%clk 0:00:10.7]} 34... Rc4 {[%clk
0:00:28.4]} 35. Kh2 {[%clk 0:00:09.9]} 35... Bf7 {[%clk 0:00:21.5]} 36. Rd2
{[%clk 0:00:09.1]} 36... Bg6 {[%clk 0:00:20.5]} 37. Nh4 {[%clk 0:00:09.3]} 37...
Be4 {[%clk 0:00:20.1]} 38. Nf3 {[%clk 0:00:09.2]} 38... Kf7 {[%clk 0:00:20.3]}
39. Kg3 {[%clk 0:00:09.4]} 39... Ke6 {[%clk 0:00:20.1]} 40. Kf4 {[%clk
0:00:09.6]} 40... b4 {[%clk 0:00:19.2]} 41. axb4 {[%clk 0:00:09.1]} 41... Rxb4
{[%clk 0:00:19.6]} 42. Ke3 {[%clk 0:00:10]} 42... Rb3+ {[%clk 0:00:19.4]} 43.
Kf2 {[%clk 0:00:10.6]} 43... Bxf3 {[%clk 0:00:18.8]} 44. gxf3 {[%clk 0:00:11.5]}
44... Kf5 {[%clk 0:00:19.2]} 45. Kg3 {[%clk 0:00:10.2]} 45... h5 {[%clk
0:00:18.3]} 46. h4 {[%clk 0:00:09.7]} 46... b5 {[%clk 0:00:17.6]} 47. Rc2 {[%clk
0:00:06]} 47... b4 {[%clk 0:00:16.2]} 48. Rc5 {[%clk 0:00:04.7]} 48... Ke6
{[%clk 0:00:13.6]} 49. Rc6+ {[%clk 0:00:05]} 49... Kd7 {[%clk 0:00:13.2]} 50.
Rc5 {[%clk 0:00:05.9]} 50... Kd6 {[%clk 0:00:11.9]} 51. Rc2 {[%clk 0:00:05.9]}
51... Ke6 {[%clk 0:00:09.9]} 52. Re2+ {[%clk 0:00:05.8]} 52... Kf5 {[%clk
0:00:09.9]} 53. Rc2 {[%clk 0:00:05.8]} 53... Rd3 {[%clk 0:00:09.5]} 54. Rc8
{[%clk 0:00:03.3]} 54... Rxd4 {[%clk 0:00:08.9]} 55. Rh8 {[%clk 0:00:04.2]}
55... Rd2 {[%clk 0:00:08.3]} 56. Rxh5+ {[%clk 0:00:04.5]} 56... Ke6 {[%clk
0:00:09.2]} 57. b3 {[%clk 0:00:03.9]} 57... Rb2 {[%clk 0:00:09.3]} 58. Rh8
{[%clk 0:00:02.9]} 58... Rxb3 {[%clk 0:00:10.2]} 59. Re8+ {[%clk 0:00:03.8]}
59... Kf5 {[%clk 0:00:09.6]} 60. Rc8 {[%clk 0:00:04.7]} 60... Rb1 {[%clk
0:00:09.5]} 61. Rc2 {[%clk 0:00:05.2]} 61... b3 {[%clk 0:00:09.4]} 62. Rd2
{[%clk 0:00:06.1]} 62... b2 {[%clk 0:00:08.3]} 63. Rxd5+ {[%clk 0:00:06.3]}
63... Ke6 {[%clk 0:00:08.4]} 64. Rb5 {[%clk 0:00:04]} 64... Rg1+ {[%clk
0:00:07.7]} 65. Kf4 {[%clk 0:00:03.9]} 65... b1=Q {[%clk 0:00:08.4]} 66. Rc5
{[%clk 0:00:03.2]} 66... Qc1+ {[%clk 0:00:06.3]} 67. Rxc1 {[%clk 0:00:03.2]}
67... Rxc1 {[%clk 0:00:06.3]} 68. h5 {[%clk 0:00:04.1]} 68... Rh1 {[%clk
0:00:06.4]} 69. Kg4 {[%clk 0:00:05]} 69... Kf7 {[%clk 0:00:06.4]} 70. f4 {[%clk
0:00:04.9]} 70... Kg7 {[%clk 0:00:06.6]} 71. f5 {[%clk 0:00:03.5]} 71... Kh6
{[%clk 0:00:06.5]} 72. Kf4 {[%clk 0:00:03.9]} 72... Rxh5 {[%clk 0:00:07.2]} 73.
Ke4 {[%clk 0:00:04.8]} 73... Rg5 {[%clk 0:00:07.6]} 74. Kf4 {[%clk 0:00:05.1]}
74... Kh5 {[%clk 0:00:07.9]} 75. Ke4 {[%clk 0:00:06]} 75... Kg4 {[%clk 0:00:08]}
76. Kd5 {[%clk 0:00:06.4]} 76... Rxf5+ {[%clk 0:00:08.5]} 77. Ke6 {[%clk
0:00:07.3]} 77... Kf4 {[%clk 0:00:08.7]} 78. Kd6 {[%clk 0:00:07.3]} 78... Ke4
{[%clk 0:00:06.8]} 79. Ke6 {[%clk 0:00:08.2]} 79... Rf1 {[%clk 0:00:06.7]} 80.
Kd6 {[%clk 0:00:07.7]} 80... f5 {[%clk 0:00:07.6]} 81. Ke6 {[%clk 0:00:08.6]}
81... f4 {[%clk 0:00:08.4]} 82. Kd6 {[%clk 0:00:09.5]} 82... f3 {[%clk
0:00:08.9]} 83. Kc5 {[%clk 0:00:10.4]} 83... f2 {[%clk 0:00:09.1]} 84. Kc4
{[%clk 0:00:11.3]} 84... Re1 {[%clk 0:00:09.2]} 85. Kc3 {[%clk 0:00:12.2]} 85...
f1=Q {[%clk 0:00:09.5]} 86. Kd2 {[%clk 0:00:13.1]} 86... Rd1+ {[%clk 0:00:09.5]}
87. Kc2 {[%clk 0:00:13.2]} 87... Qd3+ {[%clk 0:00:09.7]} 88. Kb2 {[%clk
0:00:13.4]} 88... Rb1+ {[%clk 0:00:10.2]} 89. Ka2 {[%clk 0:00:13.6]} 89... Qb3#
{[%clk 0:00:10.6]} 0-1

[Event "*** Titled Tuesday Blitz"]
[Site "Chess.com"]
[Date "2021.03.16"]
[Round "10"]
[White "FMalexhdez"]
[Black "frequentblunders"]
[Result "1-0"]
[WhiteElo "2208"]
[BlackElo "2060"]
[TimeControl "180+1"]
[EndTime "11:51:11 PDT"]
[Termination "FMalexhdez won by resignation"]

1. e4 {[%clk 0:03:00.9]} 1... e6 {[%clk 0:02:56.7]} 2. d4 {[%clk 0:03:00.2]}
2... c5 {[%clk 0:02:56.4]} 3. Nf3 {[%clk 0:02:58.9]} 3... d5 {[%clk 0:02:56.2]}
4. exd5 {[%clk 0:02:56.2]} 4... exd5 {[%clk 0:02:52.6]} 5. Be2 {[%clk 0:02:55]}
5... Nf6 {[%clk 0:02:50]} 6. O-O {[%clk 0:02:54.4]} 6... Be7 {[%clk 0:02:49.4]}
7. dxc5 {[%clk 0:02:53.9]} 7... Bxc5 {[%clk 0:02:50]} 8. Nbd2 {[%clk 0:02:52.5]}
8... O-O {[%clk 0:02:43.7]} 9. Nb3 {[%clk 0:02:52.1]} 9... Be7 {[%clk 0:02:41]}
10. Bg5 {[%clk 0:02:50.8]} 10... Nc6 {[%clk 0:02:40.1]} 11. c3 {[%clk
0:02:49.5]} 11... Bg4 {[%clk 0:02:39.3]} 12. Nbd4 {[%clk 0:02:46.8]} 12... h6
{[%clk 0:02:38.9]} 13. Bh4 {[%clk 0:02:45]} 13... Re8 {[%clk 0:02:37.9]} 14. h3
{[%clk 0:02:44.2]} 14... Bh5 {[%clk 0:02:36.1]} 15. Re1 {[%clk 0:02:26.1]} 15...
Qb6 {[%clk 0:02:30.6]} 16. Qb3 {[%clk 0:02:21.6]} 16... Ne4 {[%clk 0:02:21.6]}
17. Qxb6 {[%clk 0:02:10.8]} 17... axb6 {[%clk 0:02:22.5]} 18. Bxe7 {[%clk
0:02:09.5]} 18... Rxe7 {[%clk 0:02:16]} 19. Nf5 {[%clk 0:02:06.3]} 19... Rd7
{[%clk 0:02:13.1]} 20. g4 {[%clk 0:02:02.3]} 20... Bg6 {[%clk 0:02:11.9]} 21.
N3d4 {[%clk 0:02:02.2]} 21... Bxf5 {[%clk 0:01:45.2]} 22. Nxf5 {[%clk
0:02:00.4]} 22... f6 {[%clk 0:01:42.8]} 23. Bf3 {[%clk 0:01:57.4]} 23... Nd2
{[%clk 0:01:40.5]} 24. Bg2 {[%clk 0:01:55.8]} 24... Kf7 {[%clk 0:01:39.1]} 25.
Rad1 {[%clk 0:01:45.9]} 1-0

[Event "*** Titled Tuesday Blitz"]
[Site "Chess.com"]
[Date "2021.03.16"]
[Round "10"]
[White "SchmakAttack"]
[Black "vinniethepooh"]
[Result "1/2-1/2"]
[WhiteElo "2601"]
[BlackElo "2709"]
[TimeControl "180+1"]
[EndTime "11:51:40 PDT"]
[Termination "Game drawn by repetition"]

1. e4 {[%clk 0:03:00.9]} 1... c5 {[%clk 0:03:00.5]} 2. Nf3 {[%clk 0:02:58.9]}
2... d6 {[%clk 0:03:01.1]} 3. d4 {[%clk 0:02:58.8]} 3... cxd4 {[%clk 0:03:02]}
4. Nxd4 {[%clk 0:02:59.4]} 4... Nf6 {[%clk 0:03:02.3]} 5. Nc3 {[%clk 0:03:00]}
5... a6 {[%clk 0:03:02.9]} 6. Bg5 {[%clk 0:03:00]} 6... e6 {[%clk 0:03:03.1]} 7.
f4 {[%clk 0:03:00.2]} 7... Nbd7 {[%clk 0:03:03.7]} 8. Qe2 {[%clk 0:02:59.7]}
8... Qc7 {[%clk 0:03:04.3]} 9. O-O-O {[%clk 0:02:59.6]} 9... b5 {[%clk
0:03:04.9]} 10. a3 {[%clk 0:02:58.9]} 10... Bb7 {[%clk 0:03:05.3]} 11. g4 {[%clk
0:02:58.6]} 11... Be7 {[%clk 0:03:05.5]} 12. Kb1 {[%clk 0:02:49]} 12... h6
{[%clk 0:03:05.1]} 13. Bh4 {[%clk 0:02:39]} 13... Rc8 {[%clk 0:03:05.2]} 14. Rg1
{[%clk 0:02:35]} 14... g5 {[%clk 0:03:05.4]} 15. fxg5 {[%clk 0:02:32.1]} 15...
hxg5 {[%clk 0:03:06.3]} 16. Bxg5 {[%clk 0:02:31.6]} 16... Qb6 {[%clk 0:03:06.9]}
17. Qe1 {[%clk 0:02:24.5]} 17... Rxc3 {[%clk 0:03:07.2]} 18. Bxf6 {[%clk
0:02:24.6]} 18... Nxf6 {[%clk 0:03:08.1]} 19. Qxc3 {[%clk 0:02:24.8]} 19... Nxe4
{[%clk 0:03:09]} 20. Qe1 {[%clk 0:01:41.7]} 20... Bh4 {[%clk 0:03:08.3]} 21. Qe2
{[%clk 0:01:13]} 21... Bf2 {[%clk 0:02:54.4]} 22. Bg2 {[%clk 0:01:12.3]} 22...
Bxd4 {[%clk 0:02:05]} 23. Bxe4 {[%clk 0:01:11.3]} 23... Bxe4 {[%clk 0:01:56.9]}
24. Qxe4 {[%clk 0:01:10.4]} 24... Bxg1 {[%clk 0:01:57.4]} 25. Qa8+ {[%clk
0:01:06.1]} 25... Qd8 {[%clk 0:01:57.9]} 26. Qc6+ {[%clk 0:01:01.8]} 26... Qd7
{[%clk 0:01:56.3]} 27. Qa8+ {[%clk 0:01:01.9]} 27... Qd8 {[%clk 0:01:55.6]} 28.
Qc6+ {[%clk 0:01:00.7]} 28... Qd7 {[%clk 0:01:48.9]} 29. Qa8+ {[%clk 0:01:00.2]}
29... Qd8 {[%clk 0:01:49.3]} 1/2-1/2

[Event "*** Titled Tuesday Blitz"]
[Site "Chess.com"]
[Date "2021.03.16"]
[Round "10"]
[White "MatyChess1"]
[Black "CrazyMartian"]
[Result "1-0"]
[WhiteElo "2582"]
[BlackElo "2271"]
[TimeControl "180+1"]
[EndTime "11:51:52 PDT"]
[Termination "MatyChess1 won by resignation"]

1. e4 {[%clk 0:03:00.9]} 1... c5 {[%clk 0:02:59.6]} 2. Nf3 {[%clk 0:03:01.4]}
2... d6 {[%clk 0:02:59.8]} 3. d4 {[%clk 0:03:01.7]} 3... cxd4 {[%clk 0:03:00.1]}
4. Nxd4 {[%clk 0:03:02.6]} 4... Nf6 {[%clk 0:02:59.2]} 5. Nc3 {[%clk 0:03:02.5]}
5... a6 {[%clk 0:02:58.9]} 6. a4 {[%clk 0:02:59.4]} 6... e5 {[%clk 0:02:54.8]}
7. Nf3 {[%clk 0:02:59.6]} 7... Qc7 {[%clk 0:02:53.8]} 8. Bg5 {[%clk 0:02:58.8]}
8... Nbd7 {[%clk 0:02:47]} 9. Nd2 {[%clk 0:02:58.9]} 9... Be7 {[%clk 0:02:46.1]}
10. Nc4 {[%clk 0:02:58.8]} 10... h6 {[%clk 0:02:41.7]} 11. Bh4 {[%clk
0:02:54.8]} 11... O-O {[%clk 0:02:40.4]} 12. Ne3 {[%clk 0:02:53.5]} 12... Re8
{[%clk 0:02:29.9]} 13. Bc4 {[%clk 0:02:43.5]} 13... Nb6 {[%clk 0:01:42]} 14. Bb3
{[%clk 0:02:43.3]} 14... Be6 {[%clk 0:01:38.9]} 15. a5 {[%clk 0:02:40.6]} 15...
Nbd7 {[%clk 0:01:37.5]} 16. O-O {[%clk 0:02:38.2]} 16... Rac8 {[%clk 0:01:32.2]}
17. Qf3 {[%clk 0:02:27.2]} 17... Nc5 {[%clk 0:00:57.6]} 18. Bxf6 {[%clk
0:02:19.2]} 18... Nxb3 {[%clk 0:00:25.5]} 19. Ncd5 {[%clk 0:02:18.8]} 19... Bxd5
{[%clk 0:00:18.6]} 20. Bxe7 {[%clk 0:02:12.9]} 20... Qxe7 {[%clk 0:00:16.5]} 21.
Nxd5 {[%clk 0:02:12.4]} 21... Qe6 {[%clk 0:00:16]} 22. Qxb3 {[%clk 0:02:11.9]}
1-0

[Event "*** Titled Tuesday Blitz"]
[Site "Chess.com"]
[Date "2021.03.16"]
[Round "10"]
[White "SaqoChess_Twitch"]
[Black "jacky72"]
[Result "0-1"]
[WhiteElo "2491"]
[BlackElo "2684"]
[TimeControl "180+1"]
[EndTime "11:52:02 PDT"]
[Termination "jacky72 won by resignation"]

1. d4 {[%clk 0:03:00.9]} 1... a6 {[%clk 0:02:56.6]} 2. e3 {[%clk 0:03:01.8]}
2... d5 {[%clk 0:02:55]} 3. Nf3 {[%clk 0:03:02.7]} 3... Nf6 {[%clk 0:02:55]} 4.
Be2 {[%clk 0:03:03.6]} 4... c6 {[%clk 0:02:53.9]} 5. O-O {[%clk 0:03:04.5]} 5...
Bf5 {[%clk 0:02:54.1]} 6. b3 {[%clk 0:03:05.4]} 6... h6 {[%clk 0:02:54.1]} 7.
Bb2 {[%clk 0:03:06]} 7... e6 {[%clk 0:02:54.7]} 8. Ne5 {[%clk 0:03:06.6]} 8...
Nbd7 {[%clk 0:02:54.3]} 9. f4 {[%clk 0:03:06.4]} 9... Be7 {[%clk 0:02:53.8]} 10.
Nd2 {[%clk 0:03:06.5]} 10... Ne4 {[%clk 0:02:53]} 11. Nxe4 {[%clk 0:03:04.9]}
11... Bxe4 {[%clk 0:02:52.8]} 12. Bd3 {[%clk 0:03:01.9]} 12... Bxd3 {[%clk
0:02:45.4]} 13. Qxd3 {[%clk 0:03:02.8]} 13... f5 {[%clk 0:02:45.1]} 14. Ng6
{[%clk 0:02:58.3]} 14... Rg8 {[%clk 0:02:45.1]} 15. Qe2 {[%clk 0:02:56.7]} 15...
Nf6 {[%clk 0:02:43.2]} 16. c4 {[%clk 0:02:54.4]} 16... Bd6 {[%clk 0:02:40.5]}
17. h3 {[%clk 0:02:51.5]} 17... Kf7 {[%clk 0:02:39.4]} 18. Ne5+ {[%clk
0:02:51.4]} 18... Bxe5 {[%clk 0:02:39.3]} 19. fxe5 {[%clk 0:02:46.7]} 19... Ne4
{[%clk 0:02:40.2]} 20. Kh2 {[%clk 0:02:46.1]} 20... Qh4 {[%clk 0:02:38.4]} 21.
Rf3 {[%clk 0:02:36.6]} 21... g5 {[%clk 0:02:36.5]} 22. Qe1 {[%clk 0:02:33.2]}
22... Qxe1 {[%clk 0:02:30.6]} 23. Rxe1 {[%clk 0:02:34.1]} 23... g4 {[%clk
0:02:31.4]} 24. Rf4 {[%clk 0:02:17.3]} 24... gxh3 {[%clk 0:02:25.2]} 25. gxh3
{[%clk 0:02:18.2]} 25... Rg6 {[%clk 0:02:21.1]} 26. cxd5 {[%clk 0:02:14.6]}
26... cxd5 {[%clk 0:02:16.9]} 27. Rc1 {[%clk 0:02:12.7]} 27... Rag8 {[%clk
0:02:17.4]} 28. Rc7+ {[%clk 0:02:12.4]} 28... Ke8 {[%clk 0:02:17.9]} 29. Rc8+
{[%clk 0:02:11.8]} 29... Kd7 {[%clk 0:02:18.4]} 30. Rxg8 {[%clk 0:02:12.7]}
30... Rxg8 {[%clk 0:02:19]} 31. Rf1 {[%clk 0:02:09.4]} 31... Kc6 {[%clk
0:02:15.7]} 32. Rc1+ {[%clk 0:02:09]} 32... Kb5 {[%clk 0:02:16.1]} 33. a3 {[%clk
0:02:08]} 33... Nd2 {[%clk 0:02:13.8]} 34. a4+ {[%clk 0:01:54.1]} 34... Kb6
{[%clk 0:02:11.8]} 35. Bc3 {[%clk 0:01:54.1]} 35... Nf3+ {[%clk 0:02:08.4]} 36.
Kh1 {[%clk 0:01:54.4]} 36... Rg3 {[%clk 0:02:07.5]} 37. Bb4 {[%clk 0:01:51]}
37... a5 {[%clk 0:01:49.1]} 38. Bf8 {[%clk 0:01:39.3]} 38... Ng5 {[%clk
0:01:46.9]} 39. Bxh6 {[%clk 0:01:34.6]} 39... Rxh3+ {[%clk 0:01:46.6]} 40. Kg2
{[%clk 0:01:35]} 40... Rxh6 {[%clk 0:01:47.1]} 41. Rc8 {[%clk 0:01:34.1]} 41...
Ne4 {[%clk 0:01:45.1]} 42. Kf3 {[%clk 0:01:30.9]} 42... Rh2 {[%clk 0:01:44]} 0-1

[Event "*** Titled Tuesday Blitz"]
[Site "Chess.com"]
[Date "2021.03.16"]
[Round "10"]
[White "eljanov"]
[Black "slavenok"]
[Result "0-1"]
[WhiteElo "2867"]
[BlackElo "2761"]
[TimeControl "180+1"]
[EndTime "11:52:11 PDT"]
[Termination "slavenok won by resignation"]

1. e4 {[%clk 0:03:00.9]} 1... c5 {[%clk 0:03:00]} 2. Nf3 {[%clk 0:03:00.7]} 2...
a6 {[%clk 0:03:00.9]} 3. c3 {[%clk 0:02:57.7]} 3... e6 {[%clk 0:03:01.2]} 4. d4
{[%clk 0:02:57.4]} 4... cxd4 {[%clk 0:03:02.1]} 5. cxd4 {[%clk 0:02:57.8]} 5...
d5 {[%clk 0:03:01.2]} 6. e5 {[%clk 0:02:57]} 6... Bb4+ {[%clk 0:03:00.9]} 7. Bd2
{[%clk 0:02:56.3]} 7... Bxd2+ {[%clk 0:02:59.4]} 8. Qxd2 {[%clk 0:02:56.7]} 8...
f5 {[%clk 0:03:00.3]} 9. Nc3 {[%clk 0:02:49.9]} 9... Nc6 {[%clk 0:03:00.4]} 10.
Bd3 {[%clk 0:02:49.3]} 10... Nge7 {[%clk 0:02:59.7]} 11. O-O {[%clk 0:02:49.4]}
11... O-O {[%clk 0:03:00.3]} 12. Rac1 {[%clk 0:02:48.7]} 12... Ng6 {[%clk
0:02:58.4]} 13. Ne2 {[%clk 0:02:43.3]} 13... Bd7 {[%clk 0:02:58.5]} 14. g3
{[%clk 0:02:43.4]} 14... Rc8 {[%clk 0:02:56.1]} 15. h4 {[%clk 0:02:43.2]} 15...
Nh8 {[%clk 0:02:53.6]} 16. Nf4 {[%clk 0:02:41.4]} 16... Qe7 {[%clk 0:02:53.8]}
17. a3 {[%clk 0:02:39.4]} 17... Nf7 {[%clk 0:02:53.7]} 18. Rc3 {[%clk
0:02:36.7]} 18... Na7 {[%clk 0:02:51.4]} 19. Rfc1 {[%clk 0:02:35.6]} 19... Rxc3
{[%clk 0:02:49.9]} 20. Rxc3 {[%clk 0:02:35.7]} 20... Rc8 {[%clk 0:02:47.5]} 21.
Qc1 {[%clk 0:02:30.7]} 21... Rc6 {[%clk 0:02:43.1]} 22. b4 {[%clk 0:02:24.8]}
22... Rxc3 {[%clk 0:02:41.1]} 23. Qxc3 {[%clk 0:02:24.5]} 23... Bb5 {[%clk
0:02:37.8]} 24. Bxb5 {[%clk 0:02:21.2]} 24... axb5 {[%clk 0:02:32.2]} 25. Qc5
{[%clk 0:02:06.4]} 25... Qxc5 {[%clk 0:02:29.4]} 26. dxc5 {[%clk 0:02:04.9]}
26... Nd8 {[%clk 0:02:30.3]} 27. Nd4 {[%clk 0:02:00.5]} 27... Kf7 {[%clk
0:02:25]} 28. Nfe2 {[%clk 0:01:54.2]} 28... Ndc6 {[%clk 0:02:23.4]} 29. Nf3
{[%clk 0:01:43.5]} 29... h6 {[%clk 0:02:18.1]} 30. h5 {[%clk 0:01:43.7]} 30...
g5 {[%clk 0:02:15.8]} 31. hxg6+ {[%clk 0:01:42.9]} 31... Kxg6 {[%clk 0:02:16.7]}
32. Kh2 {[%clk 0:01:37.4]} 32... Kf7 {[%clk 0:02:05.3]} 33. Kh3 {[%clk
0:01:37.6]} 33... Nc8 {[%clk 0:01:58.5]} 34. Kh4 {[%clk 0:01:29.5]} 34... N8e7
{[%clk 0:01:52.2]} 35. Kh5 {[%clk 0:01:29.8]} 35... Ng6 {[%clk 0:01:49.4]} 36.
Kxh6 {[%clk 0:01:24.7]} 36... Ngxe5 {[%clk 0:01:49.2]} 37. Nxe5+ {[%clk
0:01:24.7]} 37... Nxe5 {[%clk 0:01:50.1]} 38. Nd4 {[%clk 0:01:24.8]} 38... Ng4+
{[%clk 0:01:48]} 39. Kg5 {[%clk 0:01:24.5]} 39... Nxf2 {[%clk 0:01:48]} 40. Nxb5
{[%clk 0:01:24.8]} 40... Ne4+ {[%clk 0:01:46.6]} 41. Kf4 {[%clk 0:01:25.2]}
41... Kf6 {[%clk 0:01:45.7]} 42. Nd6 {[%clk 0:01:25.5]} 42... e5+ {[%clk
0:01:45.6]} 43. Kf3 {[%clk 0:01:25.9]} 43... Nxd6 {[%clk 0:01:41.1]} 44. cxd6
{[%clk 0:01:25.9]} 44... Ke6 {[%clk 0:01:36.6]} 0-1

[Event "*** Titled Tuesday Blitz"]
[Site "Chess.com"]
[Date "2021.03.16"]
[Round "10"]
[White "rpragchess"]
[Black "Jumbo"]
[Result "1-0"]
[WhiteElo "2911"]
[BlackElo "2824"]
[TimeControl "180+1"]
[EndTime "11:52:24 PDT"]
[Termination "rpragchess won by resignation"]

1. c4 {[%clk 0:03:00.9]} 1... e5 {[%clk 0:02:58.9]} 2. Nc3 {[%clk 0:03:00.9]}
2... Nf6 {[%clk 0:02:58]} 3. g3 {[%clk 0:03:00.3]} 3... d5 {[%clk 0:02:57.8]} 4.
cxd5 {[%clk 0:03:00.7]} 4... Nxd5 {[%clk 0:02:58.7]} 5. Bg2 {[%clk 0:03:01.3]}
5... Nb6 {[%clk 0:02:58.9]} 6. e3 {[%clk 0:03:01.1]} 6... Nc6 {[%clk 0:02:52.7]}
7. Nge2 {[%clk 0:03:00.7]} 7... h5 {[%clk 0:02:53]} 8. h3 {[%clk 0:02:56]} 8...
Bf5 {[%clk 0:02:40.8]} 9. d4 {[%clk 0:02:48.8]} 9... exd4 {[%clk 0:02:35]} 10.
exd4 {[%clk 0:02:49.1]} 10... Qd7 {[%clk 0:02:35.4]} 11. Be3 {[%clk 0:02:09.3]}
11... Nb4 {[%clk 0:02:21.3]} 12. Kf1 {[%clk 0:01:55]} 12... c6 {[%clk
0:02:03.4]} 13. Nf4 {[%clk 0:01:49.6]} 13... Bd6 {[%clk 0:02:01.8]} 14. Nxh5
{[%clk 0:01:45.3]} 14... O-O-O {[%clk 0:01:47.6]} 15. g4 {[%clk 0:01:38.7]}
15... Bd3+ {[%clk 0:01:17.8]} 16. Kg1 {[%clk 0:01:34.3]} 16... g6 {[%clk
0:01:17.5]} 17. Nf4 {[%clk 0:01:31.9]} 17... Bxf4 {[%clk 0:01:15.6]} 18. Bxf4
{[%clk 0:01:32.8]} 18... Qxd4 {[%clk 0:01:15.8]} 19. Qf3 {[%clk 0:01:33.3]}
19... N6d5 {[%clk 0:01:06.7]} 20. Bg3 {[%clk 0:01:31.1]} 20... Nxc3 {[%clk
0:00:58.8]} 21. bxc3 {[%clk 0:01:30.9]} 21... Qxc3 {[%clk 0:00:59]} 22. Kh2
{[%clk 0:01:30.1]} 22... Qd4 {[%clk 0:00:44.9]} 23. Rae1 {[%clk 0:01:25.5]}
23... Rd7 {[%clk 0:00:43.7]} 24. Be5 {[%clk 0:01:24.5]} 1-0

[Event "*** Titled Tuesday Blitz"]
[Site "Chess.com"]
[Date "2021.03.16"]
[Round "10"]
[White "AttackSparrow"]
[Black "Julianos82"]
[Result "1-0"]
[WhiteElo "2508"]
[BlackElo "2387"]
[TimeControl "180+1"]
[EndTime "11:52:42 PDT"]
[Termination "AttackSparrow won by resignation"]

1. e4 {[%clk 0:03:00.9]} 1... c5 {[%clk 0:02:59.6]} 2. c3 {[%clk 0:03:00.8]}
2... d6 {[%clk 0:02:58.6]} 3. d4 {[%clk 0:02:59.6]} 3... Nf6 {[%clk 0:02:51]} 4.
Bd3 {[%clk 0:02:57.5]} 4... Nc6 {[%clk 0:02:49.5]} 5. Nf3 {[%clk 0:02:53.1]}
5... Bg4 {[%clk 0:02:31.5]} 6. d5 {[%clk 0:02:52]} 6... Ne5 {[%clk 0:02:26.5]}
7. Nxe5 {[%clk 0:02:50]} 7... dxe5 {[%clk 0:02:13.6]} 8. Qxg4 {[%clk 0:02:38.8]}
8... Nxg4 {[%clk 0:02:09.6]} 9. Bb5+ {[%clk 0:02:39.2]} 9... Qd7 {[%clk
0:02:06.7]} 10. Bxd7+ {[%clk 0:02:40.1]} 10... Kxd7 {[%clk 0:02:07.5]} 11. f3
{[%clk 0:02:40.8]} 11... Nf6 {[%clk 0:02:06.4]} 12. Be3 {[%clk 0:02:41.2]} 12...
e6 {[%clk 0:02:05.3]} 13. dxe6+ {[%clk 0:02:38.4]} 13... Kxe6 {[%clk 0:02:04.6]}
14. Nd2 {[%clk 0:02:39]} 14... Be7 {[%clk 0:02:00]} 15. O-O-O {[%clk 0:02:37.7]}
15... Rhd8 {[%clk 0:01:58.8]} 16. Nc4 {[%clk 0:02:36.5]} 16... b6 {[%clk
0:01:54.4]} 17. Kc2 {[%clk 0:02:34]} 17... Ne8 {[%clk 0:01:52.7]} 18. Bf2 {[%clk
0:02:32.1]} 18... f6 {[%clk 0:01:50.3]} 19. Ne3 {[%clk 0:02:31.4]} 19... Nc7
{[%clk 0:01:47.6]} 20. Rxd8 {[%clk 0:02:27.4]} 20... Rxd8 {[%clk 0:01:45]} 21.
Rd1 {[%clk 0:02:28.3]} 21... Rxd1 {[%clk 0:01:43.2]} 22. Kxd1 {[%clk 0:02:29.2]}
22... g6 {[%clk 0:01:41.2]} 23. g4 {[%clk 0:02:28.3]} 23... b5 {[%clk
0:01:39.2]} 24. Kc2 {[%clk 0:02:23.9]} 24... a6 {[%clk 0:01:38]} 25. b3 {[%clk
0:02:22.4]} 25... Kd6 {[%clk 0:01:36.6]} 26. a4 {[%clk 0:02:20.3]} 26... Kc6
{[%clk 0:01:34.1]} 27. Bg3 {[%clk 0:02:12.2]} 27... g5 {[%clk 0:01:27]} 28. h4
{[%clk 0:02:11.6]} 28... h6 {[%clk 0:01:26.5]} 29. h5 {[%clk 0:02:11.6]} 29...
Bf8 {[%clk 0:01:24.2]} 30. Nf5 {[%clk 0:02:10.6]} 30... Ne6 {[%clk 0:01:19.3]}
31. Kb2 {[%clk 0:02:06.8]} 31... Kb6 {[%clk 0:01:15.9]} 32. Kc2 {[%clk
0:02:06.4]} 32... Kc6 {[%clk 0:01:15.6]} 33. Bf2 {[%clk 0:02:06.7]} 33... bxa4
{[%clk 0:01:07.6]} 34. bxa4 {[%clk 0:02:06.4]} 34... c4 {[%clk 0:01:07.7]} 35.
Be3 {[%clk 0:01:58.9]} 35... Nc5 {[%clk 0:01:02.9]} 36. Bxc5 {[%clk 0:01:57.8]}
36... Kxc5 {[%clk 0:01:03.8]} 37. Ne3 {[%clk 0:01:54.9]} 37... Be7 {[%clk
0:00:57.8]} 38. Nd5 {[%clk 0:01:54.7]} 38... Bd8 {[%clk 0:00:57.8]} 39. Kb2
{[%clk 0:01:54.8]} 39... a5 {[%clk 0:00:57.3]} 40. Kc2 {[%clk 0:01:53.9]} 40...
Kd6 {[%clk 0:00:48.5]} 41. Ne3 {[%clk 0:01:54.8]} 1-0